Cogmind - Beta 16 @@@ ROGUE MODE // 2025.10.25 @ 19:55:55 Player: Miwa Result: Self-destructed Performance ------------- Evolutions (2) 1000 Regions Visited (3) 600 Robots Destroyed (32) 160 Value Destroyed (599) 599 Prototype IDs (5) 100 Alien Tech Used (0) 0 Bonus (0) 0 TOTAL SCORE: 2459 Bonus ------- None Cogmind --------- Core Integrity 440/550 Matter 300/300 Energy 125/125 System Corruption 0% Temperature Cool (-100) Movement Hovering (51) Location -8/Materials Parts ------- > --- POWER (2) -------- Light Ion Engine > --- PROPULSION (3) --- Improved Hover Unit Aerolev Unit > --- UTILITY (4) ------ Cryofiber Web Small Storage Unit Advanced Visual Processing Unit Improved Signal Interpreter > --- WEAPON (2) ------- (None) > --- INVENTORY (8) ---- VTOL Module VTOL Module VTOL Module Improved Heat Sink Weight Redist. System Improved Sensor Array Peak State ------------ > --- POWER ------------ Ion Engine Light Ion Engine > --- PROPULSION ------- Aerolev Unit Aerolev Unit Aerolev Unit > --- UTILITY ---------- Cryofiber Web Small Storage Unit Advanced Visual Processing Unit Improved Signal Interpreter > --- WEAPON ----------- Advanced Beam Cannon Concussive RPG > --- INVENTORY -------- Improved Hover Unit Improved Hover Unit VTOL Module VTOL Module VTOL Module Improved Heat Sink Weight Redist. System Improved Sensor Array [Rating: 31] Favorites ----------- Power Ion Engine Engine Ion Engine Propulsion Improved Hover Unit Wheel Wheel Hover Unit Improved Hover Unit Utility Small Storage Unit Device Improved Terrain Scanner Storage Small Storage Unit Processor Signal Interpreter Weapon Small Laser Energy Gun Small Laser Energy Cannon Advanced Beam Cannon Launcher Concussive RPG Build | -11 -10 -9 -8 ------- Run | Yrd Mat Mat Mat Slots Evolved 4 | . . 2 2 Power 1 | . . 1 . Propulsion 1 | . . 1 . Utility 2 | . . . 2 Weapon . | . . . . Parts Attached 36 | 6 12 6 12 Power 4 | 1 . 1 2 Engine 4 | 1 . 1 2 Core . | . . . . Reactor . | . . . . Propulsion 10 | 2 4 4 . Treads . | . . . . Leg . | . . . . Wheel 2 | 2 . . . Hover 8 | . 4 4 . Flight . | . . . . Utility 9 | 2 2 . 5 Device 4 | 1 . . 3 Storage 2 | 1 1 . . Processor 3 | . 1 . 2 Hackware . | . . . . Protection . | . . . . Artifact . | . . . . Weapon 13 | 1 6 1 5 Energy Gun 9 | 1 6 1 1 Energy Cannon 1 | . . . 1 Ballistic Gun . | . . . . Ballistic Cannon . | . . . . Launcher 3 | . . . 3 Special Weapon . | . . . . Impact Weapon . | . . . . Slashing Weapon . | . . . . Piercing Weapon . | . . . . Special Melee Weapon . | . . . . Unidentified Prototypes 3 | . . 1 2 Parts Lost 7 | . . 1 6 Power 2 | . . . 2 Propulsion 3 | . . . 3 Utility . | . . . . Weapon 2 | . . 1 1 Highest Loss Streak 5 | . . 1 5 To Critical Strikes . | . . . . Average Backups 5 | 3 5 6 7 Power . | . 1 . . Propulsion 3 | 1 2 4 4 Utility 1 | . . 1 2 Weapon . | 1 . . . Tool/Special . | . . . . Unused Backups 12 | . 4 2 6 Power 1 | . 1 . . Propulsion 8 | . 3 2 3 Utility 3 | . . . 3 Weapon . | . . . . Tool/Special . | . . . . Average Slot Usage (%) 92 | . 96 89 87 Engine 15 | . 14 17 16 Wheel 5 | . 9 . . Hover 21 | . 17 28 25 Device 7 | . 10 . 8 Storage 12 | . 14 11 9 Processor 8 | . 3 11 17 Energy Gun 19 | . 25 21 1 Energy Cannon 1 | . . . 6 Peak Build Rating 31 | 8 11 19 31 Average Rating 13 | 4 9 13 27 On Entrance 9 | . 8 9 19 Avg Prop Armor Cover (%) . | . . . . Naked Turns . | . . . . Heaviest Build 20 | 13 19 18 20 Greatest Support 24 | 20 20 24 24 Greatest Overweight (x) 1 | . . . 1 Average Overweight (x) . | . . . . Largest Inventory Capacity 10 | 8 10 8 8 Average Capacity 8 | 6 8 8 8 Most Carried 8 | 6 8 8 8 Average Carried 5 | 3 4 6 7 Final Capacity 8 | 8 8 8 8 Final Carried 7 | 5 4 7 6 Class Distribution -------------------- 92% | Mutant 7% | Scout Dominant Class ---------------- Mutant | -10/Materials Mutant | -9/Materials Mutant | -8/Materials Resources | -11 -10 -9 -8 ----------- Run | Yrd Mat Mat Mat Matter Collected 663 | 260 177 . 226 Remotely . | . . . . Salvage Created 1228 | 128 624 145 331 Parts 57 | 5 24 6 22 Haulers Intercepted 2 | . 2 . . Recyclers Shooed 6 | 1 4 . 1 Parts Field Recycled . | . . . . Retrieved Matter . | . . . . Parts Self-Destructed . | . . . . Prevented . | . . . . Parts Restored . | . . . . Kills | -11 -10 -9 -8 ------- Run | Yrd Mat Mat Mat Combat Hostiles Destroyed 17 | . 10 3 4 Guns 12 | . 9 3 . Cannons 3 | . . . 3 AOE 1 | . . . 1 Classes Destroyed 9 | 2 5 . 2 Worker 1 | . 1 . . Builder 2 | . . . 2 Tunneler 2 | 2 . . . Hauler 2 | . 2 . . Recycler 5 | 1 1 1 2 Watcher 3 | . 3 . . Swarmer 6 | . 3 3 . Cutter 1 | . . . 1 Grunt 10 | . 7 . 3 Best Kill Streak 4 | 2 4 2 3 Combat Bots Only 3 | . 3 2 2 Max Kills in Single Turn 3 | 1 1 1 3 Gunslinging . | . . . . Exploded 1 | . . . 1 Melee . | . . . . Uniques/NPCs Destroyed . | . . . . Combat | -11 -10 -9 -8 -------- Run | Yrd Mat Mat Mat Hostile Shots Fired 102 | . 48 19 35 Missed 25 | . 14 5 6 Hits 77 | . 34 14 29 Projectile 77 | . 34 14 29 AOE 2 | . . . 2 Critical Strikes 4 | . . . 4 Damage Taken 1138 | . 398 139 601 Core 173 | . 55 8 110 Absorbed by Shields . | . . . . Regen/Repaired (Parts) 9 | . 9 . . Core Remaining (%) 92 | 100 78 98 . Volleys Fired 117 | 18 62 11 26 Largest 2 | 1 2 2 2 Hottest 90 | 50 90 80 68 Shots Fired 183 | 18 115 22 28 Gun 155 | 18 115 22 . Cannon 25 | . . . 25 Launcher 3 | . . . 3 Special . | . . . . Kinetic . | . . . . Thermal 168 | 18 103 22 25 Explosive 3 | . . . 3 Electromagnetic 12 | . 12 . . Robot Hit Streak 11 | 3 11 5 8 Robot Miss Streak 4 | 2 4 3 1 Penetration Max . | . . . . Secondary Targets 1 | . 1 . . Max Gunslinging Chain 1 | . 1 . . Shots Hit Robots 113 | 11 68 12 22 Core Hits 61 | 4 32 5 20 Critical Kills . | . . . . Critical Parts Destroyed . | . . . . Critical Strikes 8 | 2 6 . . Burn 7 | 2 5 . . Corrupt 1 | . 1 . . Melee Attacks . | . . . . Impact . | . . . . Slashing . | . . . . Piercing . | . . . . Sneak Attacks . | . . . . Combat Hostiles . | . . . . Follow-up Attacks . | . . . . Damage Inflicted 1947 | 164 831 132 820 Guns 1127 | 164 831 132 . Cannons 435 | . . . 435 Explosions 385 | . . . 385 Melee . | . . . . Ramming . | . . . . Kinetic . | . . . . Thermal 1418 | 164 711 132 411 Explosive 385 | . . . 385 Electromagnetic 120 | . 120 . . Impact 24 | . . . 24 Slashing . | . . . . Piercing . | . . . . Highest Corruption . | . . . . Average Corruption . | . . . . Corruption Purged . | . . . . Corruption Blocked . | . . . . Overload Shots . | . . . . Overflow Damage 2 | . . . 2 Projectiles 2 | . . . 2 Explosions . | . . . . Melee . | . . . . Knockbacks . | . . . . Impact . | . . . . Kinetic . | . . . . Secondary . | . . . . Self-Inflicted Damage . | . . . . Shots . | . . . . Rammed . | . . . . Targets Rammed . | . . . . Kicked . | . . . . Crushed . | . . . . Highest Temperature 397 | 130 312 75 397 Average Temperature 101 | 55 93 27 181 Received Heat Transfer 459 | . 177 30 252 Effects 8 | . 3 . 5 Energy Bleed 2 | . 1 . 1 Interference 4 | . 1 . 3 Matter Decay 2 | . 1 . 1 Siege Activations . | . . . . Martial Activations . | . . . . Shielding Activations . | . . . . Robots Disrupted . | . . . . Combat Hostiles . | . . . . Robots Corrupted 1 | . 1 . . Combat Hostiles 1 | . 1 . . Parts Fried 1 | . 1 . . Impact Corruptions . | . . . . Robots Melted . | . . . . Combat Hostiles . | . . . . Parts Melted 9 | 1 5 . 3 Heat Transferred 3781 | 629 2112 300 740 Parts Sabotaged . | . . . . Parts Stolen . | . . . . Parts Stripped . | . . . . Power Chain Reactions . | . . . . Alert | -11 -10 -9 -8 ------- Run | Yrd Mat Mat Mat Maximum Alert Level . | . . . . Low Security (%) 100 | 100 100 100 100 Level 1 . | . . . . Level 2 . | . . . . Level 3 . | . . . . Level 4 . | . . . . Level 5 . | . . . . High Security . | . . . . Max Security . | . . . . Peak Influence 139 | 5 104 139 52 Initial 31 | . 3 27 31 Average 45 | 1 44 96 19 Influence Increases 709 | 15 345 187 162 Destroy 0b10 Robot/C 340 | . 200 60 80 Destroy 0b10 Robot/NC 75 | 15 35 5 20 Destroy Leader 80 | . 50 10 20 Successful Hack 37 | . 15 22 . Disable Machine 15 | . . . 15 Destroy Structure 12 | . . . 12 Partial Spotted 15 | . 15 . . Lose Combat Pursuer 135 | . 30 90 15 Influence Decreases 667 | 10 283 180 194 Entered New Map 85 | . 2 40 43 Time Decay 547 | 10 281 120 136 Lost Part 25 | . . 10 15 Lost Ally 10 | . . 10 . Squads Dispatched 6 | . 2 . 4 Investigation 3 | . 2 . 1 Extermination . | . . . . Reinforcement 3 | . . . 3 Assault . | . . . . Garrison . | . . . . Intercept . | . . . . Searches Triggered . | . . . . Construction Impeded . | . . . . Haulers Reinforced . | . . . . Active Scanning Responses . | . . . . Cargo Convoy Interrupts . | . . . . Stealth | -11 -10 -9 -8 --------- Run | Yrd Mat Mat Mat Distress Signals 1 | . 1 . . Communications Jammed . | . . . . Distress Signals . | . . . . Times Spotted 40 | . 20 9 11 Peak Tracking Total 7 | . 4 4 7 Tactical Retreats 7 | . 2 4 1 Traps | -11 -10 -9 -8 ------- Run | Yrd Mat Mat Mat Traps Triggered 2 | . 1 . 1 Indirectly . | . . . . Trap Hack Attempts . | . . . . Triggered . | . . . . Disarmed . | . . . . Reprogrammed . | . . . . Reused . | . . . . Traps Extracted . | . . . . Installed . | . . . . Triggered . | . . . . Machines | -11 -10 -9 -8 ---------- Run | Yrd Mat Mat Mat Machines Disabled 1 | . . . 1 Max in Single Turn 1 | . . . 1 Machines Repaired . | . . . . Machines Dismantled . | . . . . Machines Sabotaged . | . . . . Overloaded Fab Kills . | . . . . Hacking | -11 -10 -9 -8 --------- Run | Yrd Mat Mat Mat Machines Accessed 10 | . 7 2 1 Terminals 9 | . 6 2 1 Fabricators . | . . . . Repair Stations 1 | . 1 . . Recycling Units . | . . . . Scanalyzers . | . . . . Garrison Access . | . . . . Total Hacks 32 | . 27 4 1 Successful 17 | . 15 2 . Failed 15 | . 12 2 1 Catastrophic 1 | . . . 1 Database Lockouts . | . . . . Manual 16 | . 12 3 1 Terminals 26 | . 21 4 1 Fabricators . | . . . . Repair Stations 6 | . 6 . . Recycling Units . | . . . . Scanalyzers . | . . . . Garrison Access . | . . . . Terminal Hacks 4 | . 4 . . Prototype ID Bank 1 | . 1 . . Scanalyzer Index 1 | . 1 . . Locate Traps 1 | . 1 . . Investigation Status 1 | . 1 . . Fabricator Hacks . | . . . . Repair Station Hacks 4 | . 4 . . Scan Component 3 | . 3 . . Repair 1 | . 1 . . Recycling Unit Hacks . | . . . . Scanalyzer . | . . . . Garrison Access Hacks . | . . . . Unauthorized Hacks 9 | . 7 2 . Terminals 9 | . 7 2 . Assimilate 1 | . 1 . . Botnet 8 | . 6 2 . Fabricators . | . . . . Repair Stations . | . . . . Recycling Units . | . . . . Scanalyzers . | . . . . Garrison Access . | . . . . Data Cores Recovered . | . . . . Used . | . . . . Hacking Detections 7 | . 4 2 1 Full Trace Events 1 | . 1 . . Feedback Events . | . . . . Feedback Blocked . | . . . . Robot Schematics Acquired . | . . . . Robots Built . | . . . . Authchips . | . . . . Time . | . . . . Total Robot Build Rating . | . . . . Part Schematics Acquired . | . . . . Parts Built . | . . . . Authchips . | . . . . Time . | . . . . Total Part Build Rating . | . . . . Part Studies Acquired . | . . . . Parts Repaired 1 | . 1 . . Time 32 | . 32 . . Parts Recycled . | . . . . Recycled Matter . | . . . . Retrieved Matter . | . . . . Retrieved Components . | . . . . Parts Scanalyzed . | . . . . Part Schematics Acquired . | . . . . Parts Damaged . | . . . . Bothacking | -11 -10 -9 -8 ------------ Run | Yrd Mat Mat Mat Used RIF Installer . | . . . . Robots Hacked . | . . . . Non-combat . | . . . . Combat . | . . . . Robot Hacks Applied . | . . . . Relay Couplers Released . | . . . . Fabnet Peak Effective % . | . . . . Robots Rewired . | . . . . Allies Hacked . | . . . . Hacks Repelled . | . . . . Allies | -11 -10 -9 -8 -------- Run | Yrd Mat Mat Mat Total Allies 1 | . 1 . . Largest Group 1 | . 1 1 . Highest-Rated Group 10 | . 10 9 . Highest-Rated Ally 10 | . 10 9 . Total Orders . | . . . . Ally Attacks . | . . . . Total Damage . | . . . . Kills . | . . . . Allies Corrupted . | . . . . Allies Melted . | . . . . Intel | -11 -10 -9 -8 ------- Run | Yrd Mat Mat Mat Active Infowar (turns) 803 | 12 525 . 266 Optics 256 | . . . 256 Sensors 42 | . . . 42 Terrain 589 | 12 525 . 52 Robot Analysis Total . | . . . . Derelict Logs Recovered . | . . . . Drone Launches . | . . . . Drone Recoveries . | . . . . Exploration | -11 -10 -9 -8 ------------- Run | Yrd Mat Mat Mat Turns Passed 1339 | 90 707 242 300 Spaces Moved 1353 | 49 692 310 302 Core 5 | 5 . . . Treads . | . . . . Legs . | . . . . Wheels 227 | 44 183 . . Hover 1121 | . 509 310 302 Flight . | . . . . Fastest Speed 42 | 50 56 42 42 Average Speed 56 | 76 62 51 44 Slowest Speed 110 | 80 80 56 110 Overloaded Moves . | . . . . Propulsion Burnouts . | . . . . Robots Hopped . | . . . . Potential Cave-ins . | . . . . Cave-ins Triggered . | . . . . Exploration Rate (%) 30 | 4 69 32 15 Regions Visited 3 Branch Regions . Pre-discovered Areas . | . . . . Known Exits Taken 2 | . 1 1 . Unknown Exits Taken 1 | 1 . . . Scrap Searched . | . . . . Spaces Dug . | . . . . Terrain Destroyed 11 | . . . 11 Melee . | . . . . Projectile . | . . . . AOE 11 | . . . 11 Terrain Rammed . | . . . . Walls Destroyed . | . . . . Machines Disabled . | . . . . Actions | -11 -10 -9 -8 --------- Run | Yrd Mat Mat Mat Total 1751 | 82 854 372 443 Wait 170 | 1 56 32 81 Move 1350 | 48 691 309 302 Hop . | . . . . Pick Up 43 | 9 15 9 10 Fast Attach 6 | 2 . 1 3 Attach 20 | 4 4 2 10 Detach 1 | . 1 . . Swap 17 | . 11 3 3 Drop 27 | . 14 5 8 Fire 117 | 18 62 11 26 Melee . | . . . . Ram . | . . . . Kick . | . . . . Crush . | . . . . Escape Stasis . | . . . . Rewire . | . . . . Trap . | . . . . Miscellaneous . | . . . . Route ------- -11/Scrapyard -10/Materials (discovered 3 exits: *Mat x2 / *Min) -9/Materials (discovered 2 exits: *Mat / *Min) -8/Materials History --------- Turn | Location | Event 10 | -11/Scrapyard | Discovered new exit (range 16) 91 | -11/Scrapyard | Entered Materials 140 | -10/Materials | Discovered new exit (range 15) 311 | -10/Materials | Build established: Mutant 460 | -10/Materials | Discovered new exit (range 15) 500 | -10/Materials | Repaired Imp. Hover Unit 659 | -10/Materials | Discovered new exit (range 16) 667 | -10/Materials | Identified exit to Materials 736 | -10/Materials | Identified exit to Mines 798 | -10/Materials | Entered another Materials area 798 | -9/Materials | Accompanied by 1 ally 798 | -9/Materials | Evolved 2 slots: Power x1, Propulsion x1 865 | -9/Materials | Discovered new exit (range 5) 867 | -9/Materials | Identified exit to Mines 961 | -9/Materials | Discovered new exit (range 16) 985 | -9/Materials | Identified exit to Materials 1040 | -9/Materials | Entered another Materials area 1040 | -8/Materials | Evolved 2 slots: Utility x2 1326 | -8/Materials | Lost 5 parts (1p3n1w) 1340 | -8/Materials | Self-destructed Last Messages --------------- 01295_ U-05 Engineer lays Concrete. 01299_ Acquired 4 matter. 01314_ Acquired Concussive RPG. 01315_ R-06 Scavenger collects Sml. Laser. 01315_ Acquired Concussive RPG. 01331_ Acquired 20 matter. 01332_ ALERT: Suspicious intruders detected, dispatching Cutter reinforcements to area. 01335_ U-05 Engineer builds a Wall. 01337_ Concussive RPG expended. 01337_ U-05 Engineer knocked back. 01337_ G-47 Trooper knocked back. 01337_ C-17 Slicer knocked back. 01337_ C-17 Slicer destroyed. 01337_ Concussive RPG expended. 01337_ U-05 Engineer destroyed. 01337_ G-47 Trooper knocked back. 01338_ Knocked back. 01338_ U-05 Engineer knocked back. 01339_ U-05 Engineer lays Concrete. Map ----- +----------------------------------------------------+ | ?????????????????????????????????????????????????? | | ?????????????????????????????????????????????????? | | ?????????????????????????????????????????????????? | | ?????????????????????????????????????????????????? | | ?????????????????????????????????????????????????? | | ?????????????????????????????????????????????????? | | ?????????????????????????????????????????????????? | | ????????????????#????????????????????????????????? | | ????????????????# ???????????????????????????????? | | ????????????????# ???????????????????????????????? | | ????????????????#/=??????????????????????????????? | | ????????????????#!/%?###########?????????????????? | | ????????????????#*!%## """T""" #?????????????????? | | ???????????????## # #?????????????????? | | ??????# ######## """ """ #?????????????????? | | ??????# !! % ""u """ #?????????????????? | | ??????# H "" """ #?????????????????? | | ??????# #?????????????????? | | ??????# #### % #?????????????????? | | ??????????????# #?# ! #?????????????????? | | ??????????????#####??### c ####?????????????????? | | ???????????????????????? c #?????????????????????? | | ?????????#???########### #?????????????????????? | | ???????????#?# """ ## #?????????????????????? | | ?????#???????# """ # #?#?#?????????????????? | | ?????######### """ ##@ #?????????????????????? | | ?????# = ## * ## ######?????????????????? | | ###### = ## ## # #?????????????????? | | !# = ##!! ## #"" #?????????????????? | | """ # ##!! * ##%#"Y #?????????????????? | | """ # ##!! ## #"" #?????????????????? | | """ # ! ######+######%#! #?????????????????? | | #+#+####### #### # #?????????????????? | | """ # + ] #?????????????????? | | """ + # #?????????????????? | | """ # # #?????????????????? | | ########+## ##+########?????????????????? | | """ #?##! ! ## ## #??????????????????? | | """ #??# ## ##""""" #??????????????????? | | """ #??# ! ## ##""""" ] #??????????????????? | | #??# ## ##""""" #??????????????????? | | ######??#! ## ##""""" #??????????????????? | | ????????#! = ## ##""""" #??????????????????? | | ??#?????######### ##""""" #??????????????????? | | ????????????????# ##""""" #??????????????????? | | ??#?????????????# #? #??????????????????? | | ???????#????????# #?#########??????????????????? | | ???????#????????#####????????????????????????????? | | ?????????????????????????????????????????????????? | | ?????????????????????????????????????????????????? | +----------------------------------------------------+ Best States ------------- Heat Dissipation 31 Energy Generation 19 Energy Capacity 400 Matter Stores 300 Matter Capacity 300 Sight Range 20 Robot Scan Range 15 Terrain Scan Range 16 Terrain Scan Density 10 Base Temperature (-) 100 Evasion (%) 56 Item Schematics ----------------- None Robot Schematics ------------------ None Fabricated ------------ Nothing Repaired ---------- Imp. Hover Unit | 74% | -10/Materials Studied --------- None Alien Tech Used ----------------- None Achievements -------------- None Challenges ------------ None Game ------ Seed MediumCloakingPick Manual? 0 Play Time 00:28:31 Cumulative 50.7 hours Start 2025.10.25 @ 19:11:09 End 2025.10.25 @ 19:55:55 Sessions 1 Manual Loads 0 Difficulty Rogue Special Mode None Game No. 62 Rogue 62 Adventurer 0 Explorer 0 Win Type - Total 0 Types 0/0/0/0/0/0/0/0/0/0 Lore% 18 Gallery% 31 Achievement% 21 Wizard Run 0 Options --------- Layout 1 ASCII 0 Keyboard 0 Movement Mouse Keybinds 0 Fullscreen 2 Font 28/SmallcapsGlow Map View 55x47 Zoom Use 0% Tactical HUD 1 Map Filters NONE Filters NONE Steam 1 RUN: edd38985-2e71-48d5-9456-41dc27e5840a